{"text_format":"1","workbook":"xlsx","n_sheets":2,"sheets":["прил 1","Приложение"],"not_rendered":{"charts":0,"images":0,"macros":1,"external_links":0,"defined_names":18,"comments":0,"pivot_tables":0},"unopened":[],"bounds":{"document_bytes":16777216,"sheet_cells":100000,"rows_first":2000,"rows_last":500,"rows_between":2000,"halvings":0,"cell_chars":16384,"cell_head_chars":4096},"cells_cut":0,"cells_raw":0,"read":"whole","date_system":"1900"}

{"sheet":"прил 1","index":0,"n_rows":102,"n_cols":24,"rows_kept":102,"cut":false,"hidden":false,"merged":[[1,2,1,17],[12,5,12,17],[13,5,13,17],[9,5,9,17],[7,2,7,4],[3,12,3,17],[2,8,2,17],[8,5,8,17],[9,2,9,4],[10,2,10,4],[2,22,4,26],[5,22,7,26],[6,2,6,7],[19,9,19,11],[19,7,20,7],[4,20,4,21],[3,20,3,21],[17,8,17,12],[15,13,15,17],[12,2,12,4],[10,5,10,17],[13,2,13,4],[5,20,5,21],[4,2,4,17],[19,14,19,17],[16,13,16,17],[11,2,11,4],[8,2,8,4],[5,6,5,8],[15,8,15,12],[11,5,11,17],[19,2,20,6],[28,2,28,6],[25,8,25,12],[26,8,26,12],[21,2,21,6],[20,13,20,14],[22,2,22,6],[16,8,16,12],[17,13,17,17],[21,8,21,12],[22,13,22,17],[24,13,24,17],[23,2,23,6],[23,13,23,17],[23,8,23,12],[21,13,21,17],[24,2,24,6],[24,8,24,12],[22,8,22,12],[32,2,32,6],[32,8,32,12],[34,2,34,6],[34,8,34,12],[34,13,34,17],[32,13,32,17],[25,2,25,6],[31,13,31,17],[29,13,29,17],[29,2,29,6],[29,8,29,12],[30,13,30,17],[27,13,27,17],[28,13,28,17],[27,8,27,12],[25,13,25,17],[26,13,26,17],[31,2,31,6],[31,8,31,12],[28,8,28,12],[30,2,30,6],[30,8,30,12],[27,2,27,6],[26,2,26,6],[39,2,39,6],[39,8,39,12],[35,2,35,6],[35,8,35,12],[35,13,35,17],[36,2,36,6],[36,8,36,12],[36,13,36,17],[33,2,33,6],[33,8,33,12],[33,13,33,17],[52,2,52,6],[53,13,53,17],[58,13,58,17],[57,13,57,14],[58,8,58,12],[42,13,42,17],[47,8,47,12],[50,8,50,12],[42,8,42,12],[44,8,44,12],[48,13,48,17],[50,13,50,17],[49,13,49,17],[49,2,49,6],[49,8,49,12],[46,2,46,6],[42,2,42,6],[45,2,45,6],[45,8,45,12],[43,8,43,12],[44,2,44,6],[45,13,45,17],[43,13,43,17],[44,13,44,17],[51,2,51,6],[51,8,51,12],[64,13,64,17],[63,2,63,6],[63,8,63,12],[63,13,63,17],[56,2,57,6],[56,7,57,7],[62,2,62,6],[62,8,62,12],[52,8,52,12],[53,2,53,6],[52,13,52,17],[55,2,55,13],[60,8,60,12],[58,2,58,6],[57,8,57,12],[60,2,60,6],[60,13,60,17],[51,13,51,17],[59,2,59,6],[59,8,59,12],[59,13,59,17],[53,8,53,12],[61,13,61,17],[56,14,56,17],[56,9,56,11],[65,13,65,17],[66,2,66,6],[66,8,66,12],[66,13,66,17],[61,2,61,6],[61,8,61,12],[62,13,62,17],[64,2,64,6],[64,8,64,12],[67,2,67,6],[67,8,67,12],[67,13,67,17],[68,2,68,6],[68,8,68,12],[68,13,68,17],[65,2,65,6],[65,8,65,12],[71,2,71,6],[71,8,71,12],[71,13,71,17],[72,2,72,6],[72,8,72,12],[72,13,72,17],[69,2,69,6],[69,8,69,12],[69,13,69,17],[70,2,70,6],[70,8,70,12],[70,13,70,17],[75,2,75,6],[75,8,75,12],[75,13,75,17],[76,2,76,6],[76,8,76,12],[76,13,76,17],[73,2,73,6],[73,8,73,12],[73,13,73,17],[74,2,74,6],[74,8,74,12],[74,13,74,17],[79,2,79,6],[79,8,79,12],[79,13,79,17],[80,2,80,6],[80,8,80,12],[80,13,80,17],[77,2,77,6],[77,8,77,12],[77,13,77,17],[78,2,78,6],[78,8,78,12],[78,13,78,17],[83,2,83,6],[83,8,83,12],[83,13,83,17],[84,2,84,6],[84,8,84,12],[84,13,84,17],[81,2,81,6],[81,8,81,12],[81,13,81,17],[82,2,82,6],[82,8,82,12],[82,13,82,17],[87,2,87,6],[87,8,87,12],[87,13,87,17],[88,2,88,6],[88,8,88,12],[88,13,88,17],[85,2,85,6],[85,8,85,12],[85,13,85,17],[86,2,86,6],[86,8,86,12],[86,13,86,17],[92,2,92,6],[91,2,91,6],[91,8,91,12],[91,13,91,17],[92,8,92,12],[92,13,92,17],[89,2,89,6],[89,8,89,12],[89,13,89,17],[90,2,90,6],[90,8,90,12],[90,13,90,17],[101,2,101,3],[97,2,97,3],[97,5,97,6],[98,5,98,6],[100,5,100,6],[100,8,100,13],[98,8,98,13],[93,2,93,6],[93,8,93,12],[93,13,93,17],[97,8,97,13],[94,2,94,6],[94,8,94,12],[94,13,94,17],[95,2,95,6],[95,8,95,12],[95,13,95,17],[99,5,99,6],[99,8,99,13],[99,2,99,4],[50,20,50,21],[7,5,7,17],[20,8,20,12],[46,8,46,12],[46,13,46,17],[48,2,48,6],[48,8,48,12],[47,2,47,6],[47,13,47,17],[50,2,50,6],[41,8,41,12],[39,13,39,17],[40,13,40,17],[41,13,41,17],[40,2,40,6],[40,8,40,12],[41,2,41,6],[37,2,37,6],[37,8,37,12],[37,13,37,17],[43,2,43,6],[38,2,38,6],[38,8,38,12],[38,13,38,17]]}
[]
[]
[null,null,null,null,null,null,null,null,"Приложение 1\nк Национальному стандарту бухгалтерского учета и отчетности «Индивидуальная бухгалтерская отчетность» \n12.12.2016 № 104",null,null,null,null,null,null,null,null,null,null,null,null,null,"Заполнение форм начинается с указания периода, за который оформляется отчетность. \n\nДля этого,  в ячейку слева, окрашенную в желтый цвет, введите дату начала отчетного периода, за который заполняется баланс."]
[null,null,null,null,null,null,null,null,null,null,null,null,"Форма",null,null,null,null,null,null,null,"2021-12-31"]
[null,null,"БУХГАЛТЕРСКИЙ БАЛАНС",null,null,null,null,null,null,null,null,null,null,null,null,null,null,null,null,null,"2022-01-01"]
[null,null,null,null,null,"на",{"$f":"DATE(YEAR(U6),MONTH(U6),DAY(U6))","v":"2022-12-31"},null,null,null,null,null,null,null,null,null,null,null,null,null,"2022-12-31",null,"В ячейку слева, окрашенную в бледно-зеленый цвет, введите дату окончания отчетного периода, за который заполняется баланс."]
[]
[null,null,"Организация",null,null,"ОАО \"Универмаг \"Центральный\"",null,null,null,null,null,null,null,null,null,null,null,null,null,null,{"$f":"DAY(U5)","v":1},{"$f":"DAY(U6)","v":31}]
[null,null,"Учетный номер плательщика",null,null,700002659,null,null,null,null,null,null,null,null,null,null,null,null,null,null,{"$f":"MONTH(U5)","v":1},{"$f":"MONTH(U6)","v":12},{"$f":"IF(U9=1,\"январь\",IF(U9=2,\"февраль\",IF(U9=3,\"март\",IF(U9=4,\"апрель\",IF(U9=5,\"май\",IF(U9=6,\"июнь\",IF(U9=7,\"июль\",W10)))))))","v":"январь"},{"$f":"IF(V9=1,\"январь\",IF(V9=2,\"февраль\",IF(V9=3,\"март\",IF(V9=4,\"апрель\",IF(V9=5,\"май\",IF(V9=6,\"июнь\",IF(V9=7,\"июль\",X10)))))))","v":"декабрь"}]
[null,null,"Вид экономической деятельности",null,null,"Розничная торговля",null,null,null,null,null,null,null,null,null,null,null,null,null,null,{"$f":"YEAR(U5)","v":2022},{"$f":"YEAR(U6)","v":2022},{"$f":"IF(U9=8,\"август\",IF(U9=9,\"сентябрь\",IF(U9=10,\"октябрь\",IF(U9=11,\"ноябрь\",IF(U9=12,\"декабрь\",0)))))","v":0},{"$f":"IF(V9=8,\"август\",IF(V9=9,\"сентябрь\",IF(V9=10,\"октябрь\",IF(V9=11,\"ноябрь\",IF(V9=12,\"декабрь\",0)))))","v":"декабрь"}]
[null,null,"Организационно-правовая форма",null,null,"Открытое акционерное общество"]
[null,null,"Орган управления",null,null,"Управление торговли и услуг Могилевского горисполкома"]
[null,null,"Единица измерения",null,null,"тыс. руб."]
[null,null,"Адрес",null,null,"212030, г. Могилев, ул. Первомайская, 61"]
[]
[null,null,null,null,null,null,null,null,"Дата утверждения"]
[null,null,null,null,null,null,null,null,"Дата отправки"]
[null,null,null,null,null,null,null,null,"Дата принятия"]
[]
[null,null,"Активы",null,null,null,null,"Код строки","На",{"$f":"U6","v":"2022-12-31"},null,null,null,"На ",{"$f":"U4","v":"2021-12-31"}]
[null,null,null,null,null,null,null,null,{"$f":"U6","v":"2022-12-31"}]
[null,null,1,null,null,null,null,2,3,null,null,null,null,4]
[null,null,"I. ДОЛГОСРОЧНЫЕ АКТИВЫ"]
[null,null,"Основные средства",null,null,null,null,110,5984,null,null,null,null,3090,null,null,null,null,null,null,"01 ,02"]
[null,null,"Нематериальные активы",null,null,null,null,120,30,null,null,null,null,30,null,null,null,null,null,null,"04, 05"]
[null,null,"Доходные вложения в материальные активы",null,null,null,null,130,{"$f":"SUM(I28:M30)","v":659},null,null,null,null,{"$f":"SUM(N27:R30)","v":659},null,null,null,null,null,null,"03, 02"]
[null,null,"        в том числе:"]
[null,null,"    инвестиционная недвижимость",null,null,null,null,131,659,null,null,null,null,659]
[null,null,"    предметы финансовой аренды (лизинга)",null,null,null,null,132,0,null,null,null,null,0]
[null,null,"    прочие доходные вложения в материальные активы",null,null,null,null,133,0,null,null,null,null,0]
[null,null,"Вложения в долгосрочные активы",null,null,null,null,140,150,null,null,null,null,26,null,null,null,null,null,null,"08, 07"]
[null,null,"Долгосрочные финансовые вложения",null,null,null,null,150,227,null,null,null,null,225,null,null,null,null,null,null,"06"]
[null,null,"Отложенные налоговые активы",null,null,null,null,160,0,null,null,null,null,0,null,null,null,null,null,null,"09"]
[null,null,"Долгосрочная дебиторская задолженность",null,null,null,null,170,0,null,null,null,null,0,null,null,null,null,null,null,"60, 62, 76","63"]
[null,null,"Прочие долгосрочные активы",null,null,null,null,180,34,null,null,null,null,0,null,null,null,null,null,null,"97"]
[null,null,"ИТОГО по разделу I",null,null,null,null,190,{"$f":"SUM(I24:M26,I31:M35)","v":7084},null,null,null,null,{"$f":"SUM(N24:R26,N31:R35)","v":4030}]
[null,null,"II. КРАТКОСРОЧНЫЕ АКТИВЫ"]
[null,null,"Запасы",null,null,null,null,210,{"$f":"SUM(I40:M45)","v":8004},null,null,null,null,{"$f":"SUM(N40:R45)","v":7213}]
[null,null,"        в том числе:"]
[null,null,"    материалы",null,null,null,null,211,262,null,null,null,null,228,null,null,null,null,null,null,"10, 15, 16"]
[null,null,"    животные на выращивании и откорме",null,null,null,null,212,0,null,null,null,null,0,null,null,null,null,null,null,"11"]
[null,null,"    незавершенное производство",null,null,null,null,213,"-",null,null,null,null,"-",null,null,null,null,null,null,"20, 21, 23, 29"]
[null,null,"    готовая продукция и товары",null,null,null,null,214,7742,null,null,null,null,6985,null,null,null,null,null,null,"20,43, 41, 44","42"]
[null,null,"    товары отгруженные",null,null,null,null,215,0,null,null,null,null,0,null,null,null,null,null,null,"45"]
[null,null,"    прочие запасы",null,null,null,null,216,0,null,null,null,null,0]
[null,null,"Долгосрочные активы, предназначенные для реализации",null,null,null,null,220,0,null,null,null,null,0,null,null,null,null,null,null,"47"]
[null,null,"Расходы будущих периодов",null,null,null,null,230,12,null,null,null,null,39,null,null,null,null,null,null,"97"]
[null,null,"Налог на добавленную стоимость по приобретенным товарам, работам, услугам",null,null,null,null,240,5,null,null,null,null,15,null,null,null,null,null,null,"18"]
[null,null,"Краткосрочная дебиторская задолженность",null,null,null,null,250,1122,null,null,null,null,722,null,null,null,null,null,null,"60, 62, 73,76","63"]
[null,null,"Краткосрочные финансовые вложения",null,null,null,null,260,"-",null,null,null,null,"-",null,null,null,null,null,null,"58, 06","59"]
[null,null,"Денежные средства и эквиваленты денежных средств",null,null,null,null,270,847,null,null,null,null,701,null,null,null,null,null,null,"50, 51, 52, 55, 57, 58"]
[null,null,"Прочие краткосрочные активы",null,null,null,null,280,"-",null,null,null,null,0,null,null,null,null,null,null,"94"]
[null,null,"ИТОГО по разделу II",null,null,null,null,290,{"$f":"SUM(I38,I46:M52)","v":9990},null,null,null,null,{"$f":"SUM(N38,N46:R52)","v":8690},null,null,null,null,null,null,{"$f":"IF(I54-I96=0,\" \",IF(U54<0,CONCATENATE(\"Актив баланса на конец отчетного периода меньше пассива на \",-U54,\" тыс.руб.\"),CONCATENATE(\"Актив баланса на конец отчетного периода превышает пассив на \",U54,\" тыс.руб.\")))","v":" "}]
[null,null,"БАЛАНС",null,null,null,null,300,{"$f":"I36+I53","v":17074},null,null,null,null,{"$f":"N36+N53","v":12720},null,null,null,null,null,null,{"$f":"IF(ABS(I54-I96)>0,I54-I96,0)","v":0},{"$f":"IF(ABS(N54-N96)>0,N54-N96,0)","v":0}]
[null,null,null,null,null,null,null,null,null,null,null,null,null,null,null,null,null,null,null,null,null,{"$f":"IF(N54-N96=0,\" \",IF(V54<0,CONCATENATE(\"Актив баланса на начало отчетного периода меньше пассива на \",-V54,\" тыс.руб.\"),CONCATENATE(\"Актив баланса на начало отчетного периода превышает пассив на \",V54,\" тыс.руб.\")))","v":""}]
[]
[null,null,"Собственный капитал и обязательства",null,null,null,null,"Код строки","На",{"$f":"U6","v":"2022-12-31"},null,null,null,"На ","31 декабря 2021 г."]
[null,null,1,null,null,null,null,null,{"$f":"U6","v":"2022-12-31"}]
[null,null,1,null,null,null,null,2,3,null,null,null,null,4]
[null,null,"III. СОБСТВЕННЫЙ КАПИТАЛ"]
[null,null,"Уставный капитал",null,null,null,null,410,408,null,null,null,null,408,null,null,null,null,null,null,"80"]
[null,null,"Неоплаченная часть уставного капитала",null,null,null,null,420,0,null,null,null,null,0,null,null,null,null,null,null,"75 (75-1)"]
[null,null,"Собственные акции (доли в уставном капитале)",null,null,null,null,430,0,null,null,null,null,0,null,null,null,null,null,null,"81"]
[null,null,"Резервный капитал",null,null,null,null,440,25,null,null,null,null,25,null,null,null,null,null,null,"82"]
[null,null,"Добавочный капитал",null,null,null,null,450,4968,null,null,null,null,2177,null,null,null,null,null,null,"83"]
[null,null,"Нераспределенная прибыль (непокрытый убыток)",null,null,null,null,460,4161,null,null,null,null,3720,null,null,null,null,null,null,"84"]
[null,null,"Чистая прибыль (убыток) отчетного периода",null,null,null,null,470,0,null,null,null,null,0,null,null,null,null,null,null,"99"]
[null,null,"Целевое финансирование",null,null,null,null,480,0,null,null,null,null,0,null,null,null,null,null,null,"86"]
[null,null,"ИТОГО по разделу III",null,null,null,null,490,{"$f":"SUM(I61,I64:M68)-I62-I63","v":9562},null,null,null,null,{"$f":"SUM(N61,N64:R68)-N62-N63","v":6330}]
[null,null,"IV. ДОЛГОСРОЧНЫЕ ОБЯЗАТЕЛЬСТВА"]
[null,null,"Долгосрочные кредиты и займы",null,null,null,null,510,620,null,null,null,null,"-",null,null,null,null,null,null,"67"]
[null,null,"Долгосрочные обязательства по лизинговым платежам",null,null,null,null,520,0,null,null,null,null,0,null,null,null,null,null,null,"76"]
[null,null,"Отложенные налоговые обязательства",null,null,null,null,530,0,null,null,null,null,0,null,null,null,null,null,null,"65"]
[null,null,"Доходы будущих периодов",null,null,null,null,540,"-",null,null,null,null,"-",null,null,null,null,null,null,"98"]
[null,null,"Резервы предстоящих платежей",null,null,null,null,550,0,null,null,null,null,0,null,null,null,null,null,null,"96"]
[null,null,"Прочие долгосрочные обязательства",null,null,null,null,560,0,null,null,null,null,0]
[null,null,"ИТОГО по разделу IV",null,null,null,null,590,{"$f":"SUM(I71:M76)","v":620},null,null,null,null,{"$f":"SUM(N71:R76)","v":0}]
[null,null,"V. КРАТКОСРОЧНЫЕ ОБЯЗАТЕЛЬСТВА"]
[null,null,"Краткосрочные кредиты и займы",null,null,null,null,610,0,null,null,null,null,0,null,null,null,null,null,null,"66"]
[null,null,"Краткосрочная часть долгосрочных обязательств",null,null,null,null,620,2,null,null,null,null,1]
[null,null,"Краткосрочная кредиторская задолженность",null,null,null,null,630,{"$f":"SUM(I83:M90)","v":6890},null,null,null,null,{"$f":"SUM(N83:R90)","v":6389}]
[null,null,"        в том числе:"]
[null,null,"    поставщикам, подрядчикам, исполнителям",null,null,null,null,631,5972,null,null,null,null,5652,null,null,null,null,null,null,"60"]
[null,null,"    по авансам полученным",null,null,null,null,632,195,null,null,null,null,169,null,null,null,null,null,null,"62"]
[null,null,"    по налогам и сборам",null,null,null,null,633,460,null,null,null,null,347,null,null,null,null,null,null,"68"]
[null,null,"    по социальному страхованию и обеспечению",null,null,null,null,634,49,null,null,null,null,41,null,null,null,null,null,null,"69"]
[null,null,"    по оплате труда",null,null,null,null,635,168,null,null,null,null,136,null,null,null,null,null,null,"70, 76"]
[null,null,"    по лизинговым платежам",null,null,null,null,636,0,null,null,null,null,0,null,null,null,null,null,null,"76"]
[null,null,"    собственнику имущества (учредителям, участникам)",null,null,null,null,637,40,null,null,null,null,38,null,null,null,null,null,null,"70, 75"]
[null,null,"    прочим кредиторам",null,null,null,null,638,6,null,null,null,null,6,null,null,null,null,null,null," 71, 73,76"]
[null,null,"Обязательства, предназначенные для реализации",null,null,null,null,640,0,null,null,null,null,0,null,null,null,null,null,null,"76"]
[null,null,"Доходы будущих периодов",null,null,null,null,650,"-",null,null,null,null,"-",null,null,null,null,null,null,"98"]
[null,null,"Резервы предстоящих платежей",null,null,null,null,660,"-",null,null,null,null,"-",null,null,null,null,null,null,"96"]
[null,null,"Прочие краткосрочные обязательства",null,null,null,null,670,"-",null,null,null,null,"-"]
[null,null,"ИТОГО по разделу V",null,null,null,null,690,{"$f":"SUM(I79:M81,I91:M94)","v":6892},null,null,null,null,{"$f":"SUM(N79:R81,N91:R94)","v":6390},null,null,null,null,null,null,{"$f":"IF(I54-I96=0,\" \",IF(U96<0,CONCATENATE(\"Пассив баланса на конец отчетного периода меньше актива на \",-U96,\" тыс.руб.\"),CONCATENATE(\"Пассив баланса на конец отчетного периода превышает актив на \",U96,\" тыс.руб.\")))","v":" "}]
[null,null,"БАЛАНС",null,null,null,null,700,{"$f":"I69+I77+I95","v":17074},null,null,null,null,{"$f":"N69+N77+N95","v":12720},null,null,null,null,null,null,{"$f":"IF(ABS(-I54+I96)>0.9,-I54+I96,0)","v":0},{"$f":"IF(ABS(-N54+N96)>0.9,-N54+N96,0)","v":0}]
[null,null,null,null,null,null,null,null,null,null,null,null,null,null,null,null,null,null,null,null,null,{"$f":"IF(N54-N96=0,\" \",IF(V96<0,CONCATENATE(\"Пассив баланса на начало отчетного периода меньше актива на \",-V96,\" тыс.руб.\"),CONCATENATE(\"Пассив баланса на начало отчетного периода превышает актив на \",V96,\" тыс.руб.\")))","v":""}]
[null,null,"Руководитель",null,null,null,null,null,"В.С.Амбарцумян"]
[null,null,"           ",null,null,"(подпись)",null,null,"(инициалы, фамилия)"]
[null,null,"Главный бухгалтер ",null,null,null,null,null,"М.А.Краснова"]
[null,null,null,null,null,"(подпись)",null,null,"(инициалы, фамилия)"]
[null,null,"2023-02-22"]

{"sheet":"Приложение","index":1,"n_rows":75,"n_cols":4,"rows_kept":75,"cut":false,"hidden":true,"merged":[]}
[{"$f":"ROW()","v":1},"А. Сельское, лесное и рыбное хозяйство, 011-017",1.5,0.2]
[{"$f":"ROW()","v":2},"А. Сельское, лесное и рыбное хозяйство, 021-024",1.5,0.2]
[{"$f":"ROW()","v":3},"А. Сельское, лесное и рыбное хозяйство, 031-032",1.5,0.2]
[{"$f":"ROW()","v":4},"В. Горнодобывающая промышленность, 051-052, 061-062, 071-072, 081, 089, 091",1.7,0.3]
[{"$f":"ROW()","v":5},"В. Горнодобывающая промышленность, 099",1.2,0.15]
[{"$f":"ROW()","v":6},"С. Обрабатывающая промышленность, 101, 104-109",1.3,0.2]
[{"$f":"ROW()","v":7},"С. Обрабатывающая промышленность, 102-103",1.7,0.3]
[{"$f":"ROW()","v":8},"С. Обрабатывающая промышленность, 110, 120",1.7,0.3]
[{"$f":"ROW()","v":9},"С. Обрабатывающая промышленность, 131-133, 139, 141-143, 151-152",1.3,0.2]
[{"$f":"ROW()","v":10},"С. Обрабатывающая промышленность, 161-162, 171-172, 181-182",1.3,0.2]
[{"$f":"ROW()","v":11},"С. Обрабатывающая промышленность, 191",1.4,0.2]
[{"$f":"ROW()","v":12},"С. Обрабатывающая промышленность, 192",1.7,0.3]
[{"$f":"ROW()","v":13},"С. Обрабатывающая промышленность, подкласс 19201",1.4,0.2]
[{"$f":"ROW()","v":14},"С. Обрабатывающая промышленность, 201-206, 211-212",1.4,0.2]
[{"$f":"ROW()","v":15},"С. Обрабатывающая промышленность, 221-222",1.3,0.2]
[{"$f":"ROW()","v":16},"С. Обрабатывающая промышленность, 231-237, 239",1.2,0.15]
[{"$f":"ROW()","v":17},"С. Обрабатывающая промышленность, 241, 242, 244, 245",1.3,0.2]
[{"$f":"ROW()","v":18},"С. Обрабатывающая промышленность, 243",1.2,0.15]
[{"$f":"ROW()","v":19},"С. Обрабатывающая промышленность, 251",1.2,0.15]
[{"$f":"ROW()","v":20},"С. Обрабатывающая промышленность, 252-257, 259",1.3,0.2]
[{"$f":"ROW()","v":21},"С. Обрабатывающая промышленность, 261-267",1.3,0.2]
[{"$f":"ROW()","v":22},"С. Обрабатывающая промышленность, 268",1.4,0.2]
[{"$f":"ROW()","v":23},"С. Обрабатывающая промышленность, 271-275, 279",1.3,0.2]
[{"$f":"ROW()","v":24},"С. Обрабатывающая промышленность, 281-282, 284, 289",1.3,0.2]
[{"$f":"ROW()","v":25},"С. Обрабатывающая промышленность, 283",1.6,0.1]
[{"$f":"ROW()","v":26},"С. Обрабатывающая промышленность, 291-293, 301-304, 309",1.3,0.2]
[{"$f":"ROW()","v":27},"С. Обрабатывающая промышленность, 310, 321-322, 324, 329",1.7,0.3]
[{"$f":"ROW()","v":28},"С. Обрабатывающая промышленность, 323, 325, 331-332",1.3,0.2]
[{"$f":"ROW()","v":29},"D. Снабжение электроэнергией, газом, паром, горячей водой и кондиционированным воздухом, 351",1.1000000000000001,0.25]
[{"$f":"ROW()","v":30},"D. Снабжение электроэнергией, газом, паром, горячей водой и кондиционированным воздухом, 352",1.01,0.3]
[{"$f":"ROW()","v":31},"D. Снабжение электроэнергией, газом, паром, горячей водой и кондиционированным воздухом, 353",1.1000000000000001,0.1]
[{"$f":"ROW()","v":32},"5. Е. Водоснабжение; сбор, обработка и удаление отходов, деятельность по ликвидации загрязнений, 360-370, 381-382, 390",1.1000000000000001,0.1]
[{"$f":"ROW()","v":33},"5. Е. Водоснабжение; сбор, обработка и удаление отходов, деятельность по ликвидации загрязнений, 383",1.7,0.3]
[{"$f":"ROW()","v":34},"6. F. Строительство, 411",1.1000000000000001,0.1]
[{"$f":"ROW()","v":35},"6. F. Строительство, 412, 421-422, 429, 431-433, 439",1.2,0.15]
[{"$f":"ROW()","v":36},"7. G. Оптовая и розничная торговля; ремонт автомобилей и мотоциклов, 451-454, 461-467, 469, 471-479",1,0.1]
[{"$f":"ROW()","v":37},"8. H. Транспортная деятельность, складирование, почтовая и курьерская деятельность, 491-495, 501-504, 511-512, 521-522",1.1499999999999999,0.15]
[{"$f":"ROW()","v":38},"8. H. Транспортная деятельность, складирование, почтовая и курьерская деятельность, 531-532",1,0.05]
[{"$f":"ROW()","v":39},"9. I. Услуги по временному проживанию и питанию, 551-553, 559",1.1000000000000001,0.1]
[{"$f":"ROW()","v":40},"9. I. Услуги по временному проживанию и питанию, 561-563",1,0.1]
[{"$f":"ROW()","v":41},"10. J. Информация и связь, 581",1.1000000000000001,0.15]
[{"$f":"ROW()","v":42},"10. J. Информация и связь, 582",1.3,0.2]
[{"$f":"ROW()","v":43},"10. J. Информация и связь, 591",1.1000000000000001,0.1]
[{"$f":"ROW()","v":44},"10. J. Информация и связь, 592",1.1000000000000001,0.15]
[{"$f":"ROW()","v":45},"10. J. Информация и связь, 601-602, 611-613, 619",1.1000000000000001,0.15]
[{"$f":"ROW()","v":46},"10. J. Информация и связь, 620, 631",1.3,0.2]
[{"$f":"ROW()","v":47},"10. J. Информация и связь, 639",1.1000000000000001,0.1]
[{"$f":"ROW()","v":48},"K. Финансовая и страховая деятельность, 641-643",1.5,0.2]
[{"$f":"ROW()","v":49},"K. Финансовая и страховая деятельность, 649",1.1000000000000001,0.1]
[{"$f":"ROW()","v":50},"K. Финансовая и страховая деятельность, 651-653, 661-663",1.5,0.2]
[{"$f":"ROW()","v":51},"L. Операции с недвижимым имуществом, 681-682",1.1000000000000001,0.1]
[{"$f":"ROW()","v":52},"L. Операции с недвижимым имуществом, 683",1,0.05]
[{"$f":"ROW()","v":53},"М. Профессиональная, научная и техническая деятельность, 691-692, 701-702, 711",1,0.05]
[{"$f":"ROW()","v":54},"М. Профессиональная, научная и техническая деятельность, 712",1.2,0.15]
[{"$f":"ROW()","v":55},"М. Профессиональная, научная и техническая деятельность, 721-722",1.1499999999999999,0.2]
[{"$f":"ROW()","v":56},"М. Профессиональная, научная и техническая деятельность, 731",1.2,0.15]
[{"$f":"ROW()","v":57},"М. Профессиональная, научная и техническая деятельность, 732",1,0.05]
[{"$f":"ROW()","v":58},"М. Профессиональная, научная и техническая деятельность, 741, 743, 749",1.2,0.15]
[{"$f":"ROW()","v":59},"М. Профессиональная, научная и техническая деятельность, 742",1.1000000000000001,0.1]
[{"$f":"ROW()","v":60},"М. Профессиональная, научная и техническая деятельность, 750",1.5,0.2]
[{"$f":"ROW()","v":61},"14. N. Деятельность в сфере административных и вспомогательных услуг, 771-773",1.1000000000000001,0.1]
[{"$f":"ROW()","v":62},"14. N. Деятельность в сфере административных и вспомогательных услуг, 774",1,0.05]
[{"$f":"ROW()","v":63},"14. N. Деятельность в сфере административных и вспомогательных услуг, 781-783",1.2,0.15]
[{"$f":"ROW()","v":64},"14. N. Деятельность в сфере административных и вспомогательных услуг, 791, 799",1.1499999999999999,0.15]
[{"$f":"ROW()","v":65},"14. N. Деятельность в сфере административных и вспомогательных услуг, 801-803",1.2,0.15]
[{"$f":"ROW()","v":66},"14. N. Деятельность в сфере административных и вспомогательных услуг, 811-812",1.1000000000000001,0.1]
[{"$f":"ROW()","v":67},"14. N. Деятельность в сфере административных и вспомогательных услуг, 813",1.5,0.2]
[{"$f":"ROW()","v":68},"14. N. Деятельность в сфере административных и вспомогательных услуг, 821-823, 829",1.2,0.15]
[{"$f":"ROW()","v":69},"15. Q. Здравоохранение и социальные услуги, 861",1.1000000000000001,0.1]
[{"$f":"ROW()","v":70},"16. R. Творчество, спорт, развлечения и отдых, 931",1.1000000000000001,0.1]
[{"$f":"ROW()","v":71},"17. S. Предоставление прочих видов услуг, 941-942, 949",1.1000000000000001,0.1]
[{"$f":"ROW()","v":72},"17. S. Предоставление прочих видов услуг, 951",1.3,0.2]
[{"$f":"ROW()","v":73},"17. S. Предоставление прочих видов услуг, 952",1,0.1]
[{"$f":"ROW()","v":74},"17. S. Предоставление прочих видов услуг, 960",1.1000000000000001,0.1]
[{"$f":"ROW()","v":75},"18. Прочие виды экономической деятельности",1.5,0.2]